{"text_format":"1","workbook":"xlsx","n_sheets":2,"sheets":["Как сейчас","Как нужно сделать"],"not_rendered":{"charts":0,"images":0,"macros":1,"external_links":0,"defined_names":0,"comments":0,"pivot_tables":0},"unopened":[],"bounds":{"document_bytes":16777216,"sheet_cells":100000,"rows_first":2000,"rows_last":500,"rows_between":2000,"halvings":0,"cell_chars":16384,"cell_head_chars":4096},"cells_cut":0,"cells_raw":0,"read":"whole","date_system":"1900"}

{"sheet":"Как сейчас","index":0,"n_rows":51,"n_cols":1,"rows_kept":51,"cut":false,"hidden":false,"merged":[]}
["Вес упаковки: 2.8 кг\nРасчетный вес для доставки: 7.2 кг\nВозраст: 3 года - 8 лет\nГерой: Поли Робокар"]
["Вес упаковки: 0.5 кг\nРасчетный вес для доставки: 1.5 кг\nУтеплитель: Овчина, Шерсть\nМатериал верха: Полиамид\nТемпературный режим: до -25 °C\nПрорези для ремней безопасности: Да\nВозраст: 0 месяцев - 3 года\nОсобенности: В автокресло, В коляску\nЦвет: Красный\nДоп. информация:\nТемпературный режим до -25 градусов\nКапюшон не стягивается"]
["Вес упаковки: 0.6 кг\nРасчетный вес для доставки: 5.6 кг\nСтрана: Россия\nУтеплитель: Холлофайбер\nМатериал верха: Хлопок\nТемпературный режим: до -20 °C\nПрорези для ремней безопасности: Нет\nВозраст: 0 месяцев - 10 месяцев\nОсобенности: На выписку\nЦвет: Комбинированный"]
[{"$f":"JoinS(A1:A3)","v":"Вес упаковки: 2.8 кг\nРасчетный вес для доставки: 7.2 кг\nВозраст: 3 года - 8 лет\nГерой: Поли Робокар\nВес упаковки: 0.5 кг\nРасчетный вес для доставки: 1.5 кг\nУтеплитель: Овчина, Шерсть\nМатериал верха: Полиамид\nТемпературный режим: до -25 °C\nПрорези для ремней безопасности: Да\nВозраст: 0 месяцев - 3 года\nОсобенности: В автокресло, В коляску\nЦвет: Красный\nДоп. информация:\nТемпературный режим до -25 градусов\nКапюшон не стягивается\nВес упаковки: 0.6 кг\nРасчетный вес для доставки: 5.6 кг\nСтрана: Россия\nУтеплитель: Холлофайбер\nМатериал верха: Хлопок\nТемпературный режим: до -20 °C\nПрорези для ремней безопасности: Нет\nВозраст: 0 месяцев - 10 месяцев\nОсобенности: На выписку\nЦвет: Комбинированный\n"}]
[{"$f":"IFERROR(ExtrN($A$4,ROW()-4),\"\")","v":"Вес упаковки"}]
[{"$f":"IFERROR(ExtrN($A$4,ROW()-4),\"\")","v":"Расчетный вес для доставки"}]
["Возраст"]
["Герой"]
["Вес упаковки"]
["Расчетный вес для доставки"]
["Утеплитель"]
["Материал верха"]
["Температурный режим"]
["Прорези для ремней безопасности"]
["Возраст"]
["Особенности"]
["Цвет"]
["Доп. информация"]
["Температурный режим до -25 градусов"]
["Капюшон не стягивается"]
["Вес упаковки"]
["Расчетный вес для доставки"]
["Страна"]
["Утеплитель"]
["Материал верха"]
["Температурный режим"]
["Прорези для ремней безопасности"]
["Возраст"]
["Особенности"]
["Цвет"]
[""]
[""]
[""]
[""]
[""]
[""]
[{"$f":"IFERROR(ExtrN(JoinS($A$1:$A$3),ROW()-4),\"\")","v":""}]
[{"$f":"IFERROR(ExtrN(JoinS($A$1:$A$3),ROW()-4),\"\")","v":""}]
[{"$f":"IFERROR(ExtrN(JoinS($A$1:$A$3),ROW()-4),\"\")","v":""}]
[{"$f":"IFERROR(ExtrN(JoinS($A$1:$A$3),ROW()-4),\"\")","v":""}]
[{"$f":"IFERROR(ExtrN(JoinS($A$1:$A$3),ROW()-4),\"\")","v":""}]
[{"$f":"IFERROR(ExtrN(JoinS($A$1:$A$3),ROW()-4),\"\")","v":""}]
[{"$f":"IFERROR(ExtrN(JoinS($A$1:$A$3),ROW()-4),\"\")","v":""}]
[{"$f":"IFERROR(ExtrN(JoinS($A$1:$A$3),ROW()-4),\"\")","v":""}]
[{"$f":"IFERROR(ExtrN(JoinS($A$1:$A$3),ROW()-4),\"\")","v":""}]
[{"$f":"IFERROR(ExtrN(JoinS($A$1:$A$3),ROW()-4),\"\")","v":""}]
[{"$f":"IFERROR(ExtrN(JoinS($A$1:$A$3),ROW()-4),\"\")","v":""}]
[{"$f":"IFERROR(ExtrN(JoinS($A$1:$A$3),ROW()-4),\"\")","v":""}]
[{"$f":"IFERROR(ExtrN(JoinS($A$1:$A$3),ROW()-4),\"\")","v":""}]
[{"$f":"IFERROR(ExtrN(JoinS($A$1:$A$3),ROW()-4),\"\")","v":""}]
[{"$f":"IFERROR(ExtrN(JoinS($A$1:$A$3),ROW()-4),\"\")","v":""}]

{"sheet":"Как нужно сделать","index":1,"n_rows":11,"n_cols":26,"rows_kept":11,"cut":false,"hidden":false,"merged":[[1,5,2,11]]}
["Вес упаковки","Расчетный вес доставки","Возраст","Герой","Прорези для ремней безопасности"]
["2.8 кг","7.2 кг","3 года - 8 лет","Поли Робокар",null,"и т.д."]
[null,"1.5 кг","0 месяцев - 3 года",null,"Да"]
["0.6 кг","5.6 кг","0 месяцев - 10 месяцев",null,"Нет"]
[]
[{"$f":"INDEX('Как сейчас'!$A$5:$A$30,COLUMN())","v":"Вес упаковки"},{"$f":"INDEX('Как сейчас'!$A$5:$A$30,COLUMN())","v":"Расчетный вес для доставки"},{"$f":"INDEX('Как сейчас'!$A$5:$A$30,COLUMN())","v":"Возраст"},{"$f":"INDEX('Как сейчас'!$A$5:$A$30,COLUMN())","v":"Герой"},{"$f":"INDEX('Как сейчас'!$A$5:$A$30,COLUMN())","v":"Вес упаковки"},{"$f":"INDEX('Как сейчас'!$A$5:$A$30,COLUMN())","v":"Расчетный вес для доставки"},{"$f":"INDEX('Как сейчас'!$A$5:$A$30,COLUMN())","v":"Утеплитель"},{"$f":"INDEX('Как сейчас'!$A$5:$A$30,COLUMN())","v":"Материал верха"},{"$f":"INDEX('Как сейчас'!$A$5:$A$30,COLUMN())","v":"Температурный режим"},{"$f":"INDEX('Как сейчас'!$A$5:$A$30,COLUMN())","v":"Прорези для ремней безопасности"},{"$f":"INDEX('Как сейчас'!$A$5:$A$30,COLUMN())","v":"Возраст"},{"$f":"INDEX('Как сейчас'!$A$5:$A$30,COLUMN())","v":"Особенности"},{"$f":"INDEX('Как сейчас'!$A$5:$A$30,COLUMN())","v":"Цвет"},{"$f":"INDEX('Как сейчас'!$A$5:$A$30,COLUMN())","v":"Доп. информация"},{"$f":"INDEX('Как сейчас'!$A$5:$A$30,COLUMN())","v":"Температурный режим до -25 градусов"},{"$f":"INDEX('Как сейчас'!$A$5:$A$30,COLUMN())","v":"Капюшон не стягивается"},{"$f":"INDEX('Как сейчас'!$A$5:$A$30,COLUMN())","v":"Вес упаковки"},{"$f":"INDEX('Как сейчас'!$A$5:$A$30,COLUMN())","v":"Расчетный вес для доставки"},{"$f":"INDEX('Как сейчас'!$A$5:$A$30,COLUMN())","v":"Страна"},{"$f":"INDEX('Как сейчас'!$A$5:$A$30,COLUMN())","v":"Утеплитель"},{"$f":"INDEX('Как сейчас'!$A$5:$A$30,COLUMN())","v":"Материал верха"},{"$f":"INDEX('Как сейчас'!$A$5:$A$30,COLUMN())","v":"Температурный режим"},{"$f":"INDEX('Как сейчас'!$A$5:$A$30,COLUMN())","v":"Прорези для ремней безопасности"},{"$f":"INDEX('Как сейчас'!$A$5:$A$30,COLUMN())","v":"Возраст"},{"$f":"INDEX('Как сейчас'!$A$5:$A$30,COLUMN())","v":"Особенности"},{"$f":"INDEX('Как сейчас'!$A$5:$A$30,COLUMN())","v":"Цвет"}]
[{"$f":"MyExtract('Как сейчас'!$A1,A$6)","v":" 2.8 кг"},{"$f":"MyExtract('Как сейчас'!$A1,B$6)","v":" 7.2 кг"},{"$f":"MyExtract('Как сейчас'!$A1,C$6)","v":" 3 года - 8 лет"},{"$f":"MyExtract('Как сейчас'!$A1,D$6)","v":" Поли Робокар"},{"$f":"MyExtract('Как сейчас'!$A1,E$6)","v":" 2.8 кг"},{"$f":"MyExtract('Как сейчас'!$A1,F$6)","v":" 7.2 кг"},{"$f":"MyExtract('Как сейчас'!$A1,G$6)","v":""},{"$f":"MyExtract('Как сейчас'!$A1,H$6)","v":""},{"$f":"MyExtract('Как сейчас'!$A1,I$6)","v":""},{"$f":"MyExtract('Как сейчас'!$A1,J$6)","v":""},{"$f":"MyExtract('Как сейчас'!$A1,K$6)","v":" 3 года - 8 лет"},{"$f":"MyExtract('Как сейчас'!$A1,L$6)","v":""},{"$f":"MyExtract('Как сейчас'!$A1,M$6)","v":""},{"$f":"MyExtract('Как сейчас'!$A1,N$6)","v":""},{"$f":"MyExtract('Как сейчас'!$A1,O$6)","v":""},{"$f":"MyExtract('Как сейчас'!$A1,P$6)","v":""},{"$f":"MyExtract('Как сейчас'!$A1,Q$6)","v":" 2.8 кг"},{"$f":"MyExtract('Как сейчас'!$A1,R$6)","v":" 7.2 кг"},{"$f":"MyExtract('Как сейчас'!$A1,S$6)","v":""},{"$f":"MyExtract('Как сейчас'!$A1,T$6)","v":""},{"$f":"MyExtract('Как сейчас'!$A1,U$6)","v":""},{"$f":"MyExtract('Как сейчас'!$A1,V$6)","v":""},{"$f":"MyExtract('Как сейчас'!$A1,W$6)","v":""},{"$f":"MyExtract('Как сейчас'!$A1,X$6)","v":" 3 года - 8 лет"},{"$f":"MyExtract('Как сейчас'!$A1,Y$6)","v":""},{"$f":"MyExtract('Как сейчас'!$A1,Z$6)","v":""}]
[{"$f":"MyExtract('Как сейчас'!$A2,A$6)","v":" 0.5 кг"},{"$f":"MyExtract('Как сейчас'!$A2,B$6)","v":" 1.5 кг"},{"$f":"MyExtract('Как сейчас'!$A2,C$6)","v":" 0 месяцев - 3 года"},{"$f":"MyExtract('Как сейчас'!$A2,D$6)","v":""},{"$f":"MyExtract('Как сейчас'!$A2,E$6)","v":" 0.5 кг"},{"$f":"MyExtract('Как сейчас'!$A2,F$6)","v":" 1.5 кг"},{"$f":"MyExtract('Как сейчас'!$A2,G$6)","v":" Овчина, Шерсть"},{"$f":"MyExtract('Как сейчас'!$A2,H$6)","v":" Полиамид"},{"$f":"MyExtract('Как сейчас'!$A2,I$6)","v":" до -25 °C"},{"$f":"MyExtract('Как сейчас'!$A2,J$6)","v":" Да"},{"$f":"MyExtract('Как сейчас'!$A2,K$6)","v":" 0 месяцев - 3 года"},{"$f":"MyExtract('Как сейчас'!$A2,L$6)","v":" В автокресло, В коляску"},{"$f":"MyExtract('Как сейчас'!$A2,M$6)","v":" Красный"},{"$f":"MyExtract('Как сейчас'!$A2,N$6)","v":""},{"$f":"MyExtract('Как сейчас'!$A2,O$6)","v":"Температурный режим до -25 градусов"},{"$f":"MyExtract('Как сейчас'!$A2,P$6)","v":"Капюшон не стягивается"},{"$f":"MyExtract('Как сейчас'!$A2,Q$6)","v":" 0.5 кг"},{"$f":"MyExtract('Как сейчас'!$A2,R$6)","v":" 1.5 кг"},{"$f":"MyExtract('Как сейчас'!$A2,S$6)","v":""},{"$f":"MyExtract('Как сейчас'!$A2,T$6)","v":" Овчина, Шерсть"},{"$f":"MyExtract('Как сейчас'!$A2,U$6)","v":" Полиамид"},{"$f":"MyExtract('Как сейчас'!$A2,V$6)","v":" до -25 °C"},{"$f":"MyExtract('Как сейчас'!$A2,W$6)","v":" Да"},{"$f":"MyExtract('Как сейчас'!$A2,X$6)","v":" 0 месяцев - 3 года"},{"$f":"MyExtract('Как сейчас'!$A2,Y$6)","v":" В автокресло, В коляску"},{"$f":"MyExtract('Как сейчас'!$A2,Z$6)","v":" Красный"}]
[{"$f":"MyExtract('Как сейчас'!$A3,A$6)","v":" 0.6 кг"},{"$f":"MyExtract('Как сейчас'!$A3,B$6)","v":" 5.6 кг"},{"$f":"MyExtract('Как сейчас'!$A3,C$6)","v":" 0 месяцев - 10 месяцев"},{"$f":"MyExtract('Как сейчас'!$A3,D$6)","v":""},{"$f":"MyExtract('Как сейчас'!$A3,E$6)","v":" 0.6 кг"},{"$f":"MyExtract('Как сейчас'!$A3,F$6)","v":" 5.6 кг"},{"$f":"MyExtract('Как сейчас'!$A3,G$6)","v":" Холлофайбер"},{"$f":"MyExtract('Как сейчас'!$A3,H$6)","v":" Хлопок"},{"$f":"MyExtract('Как сейчас'!$A3,I$6)","v":" до -20 °C"},{"$f":"MyExtract('Как сейчас'!$A3,J$6)","v":" Нет"},{"$f":"MyExtract('Как сейчас'!$A3,K$6)","v":" 0 месяцев - 10 месяцев"},{"$f":"MyExtract('Как сейчас'!$A3,L$6)","v":" На выписку"},{"$f":"MyExtract('Как сейчас'!$A3,M$6)","v":" Комбинированный"},{"$f":"MyExtract('Как сейчас'!$A3,N$6)","v":""},{"$f":"MyExtract('Как сейчас'!$A3,O$6)","v":""},{"$f":"MyExtract('Как сейчас'!$A3,P$6)","v":""},{"$f":"MyExtract('Как сейчас'!$A3,Q$6)","v":" 0.6 кг"},{"$f":"MyExtract('Как сейчас'!$A3,R$6)","v":" 5.6 кг"},{"$f":"MyExtract('Как сейчас'!$A3,S$6)","v":" Россия"},{"$f":"MyExtract('Как сейчас'!$A3,T$6)","v":" Холлофайбер"},{"$f":"MyExtract('Как сейчас'!$A3,U$6)","v":" Хлопок"},{"$f":"MyExtract('Как сейчас'!$A3,V$6)","v":" до -20 °C"},{"$f":"MyExtract('Как сейчас'!$A3,W$6)","v":" Нет"},{"$f":"MyExtract('Как сейчас'!$A3,X$6)","v":" 0 месяцев - 10 месяцев"},{"$f":"MyExtract('Как сейчас'!$A3,Y$6)","v":" На выписку"},{"$f":"MyExtract('Как сейчас'!$A3,Z$6)","v":" Комбинированный"}]
[]
[{"$f":"JoinS(A7:A9)","v":" 2.8 кг\n 0.5 кг\n 0.6 кг\n"}]